[Event "Late-Titled-Tuesday-Blitz-March-19-2024"]
[Site "Chess.com"]
[Date "2024.03.19"]
[Round "10"]
[White "BabageldiAnnaberdiyev"]
[Black "Eloist"]
[Result "1/2-1/2"]
[WhiteElo "2625"]
[BlackElo "2505"]
[TimeControl "180+1"]
[EndTime "15:56:01 PDT"]
[Termination "Game drawn by 50-move rule"]

1. e4 {[%clk 0:03:00.9]} 1... e6 {[%clk 0:02:59.3]} 2. d4 {[%clk 0:03:00]} 2...
d5 {[%clk 0:02:59.8]} 3. e5 {[%clk 0:03:00.6]} 3... c5 {[%clk 0:02:59.5]} 4. c3
{[%clk 0:03:01.5]} 4... Qb6 {[%clk 0:02:58.7]} 5. Nf3 {[%clk 0:03:01.9]} 5...
Bd7 {[%clk 0:02:59]} 6. Be2 {[%clk 0:03:02.2]} 6... cxd4 {[%clk 0:02:57.2]} 7.
cxd4 {[%clk 0:03:00.9]} 7... Bb5 {[%clk 0:02:56.5]} 8. O-O {[%clk 0:03:01.2]}
8... Bxe2 {[%clk 0:02:56.2]} 9. Qxe2 {[%clk 0:03:01.9]} 9... Nc6 {[%clk
0:02:56]} 10. Nc3 {[%clk 0:02:59.3]} 10... Nge7 {[%clk 0:02:53.7]} 11. Be3
{[%clk 0:02:48.1]} 11... Nf5 {[%clk 0:02:53.2]} 12. Rfd1 {[%clk 0:02:48.1]}
12... Be7 {[%clk 0:02:51.5]} 13. g4 {[%clk 0:02:46]} 13... Nxe3 {[%clk
0:02:50.9]} 14. fxe3 {[%clk 0:02:44.4]} 14... f6 {[%clk 0:02:31.8]} 15. Qb5
{[%clk 0:02:29.3]} 15... Qxb5 {[%clk 0:02:21.4]} 16. Nxb5 {[%clk 0:02:30.2]}
16... Kd7 {[%clk 0:02:18.6]} 17. Rac1 {[%clk 0:02:25.7]} 17... fxe5 {[%clk
0:02:11.6]} 18. dxe5 {[%clk 0:02:26.6]} 18... Rhf8 {[%clk 0:02:08.9]} 19. Kg2
{[%clk 0:02:20.7]} 19... Rf7 {[%clk 0:01:45.6]} 20. Nbd4 {[%clk 0:02:20.3]}
20... Raf8 {[%clk 0:01:43.2]} 21. Rf1 {[%clk 0:02:19.3]} 21... Bd8 {[%clk
0:01:33.6]} 22. a3 {[%clk 0:02:12]} 22... Bc7 {[%clk 0:01:30]} 23. Nxc6 {[%clk
0:02:05.7]} 23... bxc6 {[%clk 0:01:28.5]} 24. b4 {[%clk 0:02:06.3]} 24... a5
{[%clk 0:01:19.6]} 25. Rb1 {[%clk 0:01:45.5]} 25... axb4 {[%clk 0:01:14.3]} 26.
axb4 {[%clk 0:01:46.1]} 26... Bb6 {[%clk 0:01:03.8]} 27. Rb3 {[%clk 0:01:42]}
27... Ra8 {[%clk 0:00:58.3]} 28. Rf2 {[%clk 0:01:39.5]} 28... Ra4 {[%clk
0:00:53.7]} 29. h3 {[%clk 0:01:30.5]} 29... h6 {[%clk 0:00:50.2]} 30. Rc2 {[%clk
0:01:20.7]} 30... Rf8 {[%clk 0:00:38.8]} 31. Ne1 {[%clk 0:01:02.4]} 31... Rfa8
{[%clk 0:00:36.3]} 32. Rbc3 {[%clk 0:01:00]} 32... Ra2 {[%clk 0:00:24.5]} 33.
Rxc6 {[%clk 0:00:56.5]} 33... Bxe3 {[%clk 0:00:23.5]} 34. Nd3 {[%clk 0:00:54.1]}
34... Rxc2+ {[%clk 0:00:22.3]} 35. Rxc2 {[%clk 0:00:55]} 35... Ra3 {[%clk
0:00:17.9]} 36. Nc5+ {[%clk 0:00:48.9]} 36... Bxc5 {[%clk 0:00:18.1]} 37. Rxc5
{[%clk 0:00:49.5]} 37... Rb3 {[%clk 0:00:17.4]} 38. Rb5 {[%clk 0:00:49.9]} 38...
Kc6 {[%clk 0:00:17.2]} 39. Ra5 {[%clk 0:00:49.6]} 39... Rxb4 {[%clk 0:00:16.5]}
40. Ra7 {[%clk 0:00:50.2]} 40... Rb2+ {[%clk 0:00:14.4]} 41. Kf3 {[%clk
0:00:49.1]} 41... Rb3+ {[%clk 0:00:14.6]} 42. Kg2 {[%clk 0:00:49.4]} 42... g5
{[%clk 0:00:14.2]} 43. Re7 {[%clk 0:00:48.6]} 43... d4 {[%clk 0:00:13.2]} 44.
Rxe6+ {[%clk 0:00:48.8]} 44... Kd5 {[%clk 0:00:13.7]} 45. Rxh6 {[%clk
0:00:49.3]} 45... d3 {[%clk 0:00:14.1]} 46. Kf3 {[%clk 0:00:44.4]} 46... d2+
{[%clk 0:00:11.8]} 47. Ke2 {[%clk 0:00:44.3]} 47... Kxe5 {[%clk 0:00:10.8]} 48.
Kxd2 {[%clk 0:00:41.4]} 48... Kf4 {[%clk 0:00:10.2]} 49. h4 {[%clk 0:00:41.8]}
49... gxh4 {[%clk 0:00:08.8]} 50. Rxh4 {[%clk 0:00:42.7]} 50... Kg5 {[%clk
0:00:08.5]} 51. Rh8 {[%clk 0:00:42.2]} 51... Kxg4 {[%clk 0:00:08.4]} 52. Rg8+
{[%clk 0:00:43.1]} 52... Kf5 {[%clk 0:00:08.1]} 53. Kc2 {[%clk 0:00:44]} 53...
Re3 {[%clk 0:00:07.7]} 54. Kd2 {[%clk 0:00:44.2]} 54... Re5 {[%clk 0:00:07.7]}
55. Kd3 {[%clk 0:00:44.6]} 55... Rd5+ {[%clk 0:00:07.6]} 56. Kc4 {[%clk
0:00:44.3]} 56... Re5 {[%clk 0:00:07.2]} 57. Rf8+ {[%clk 0:00:44.5]} 57... Ke6
{[%clk 0:00:07]} 58. Kd4 {[%clk 0:00:45.4]} 58... Rd5+ {[%clk 0:00:07.5]} 59.
Kc4 {[%clk 0:00:46]} 59... Re5 {[%clk 0:00:07.2]} 60. Re8+ {[%clk 0:00:45.4]}
60... Kd6 {[%clk 0:00:06.9]} 61. Rd8+ {[%clk 0:00:45.4]} 61... Ke7 {[%clk
0:00:06.9]} 62. Rd1 {[%clk 0:00:46.3]} 62... Ke6 {[%clk 0:00:06.9]} 63. Rh1
{[%clk 0:00:44.3]} 63... Re4+ {[%clk 0:00:07.1]} 64. Kc5 {[%clk 0:00:44.2]}
64... Re5+ {[%clk 0:00:07.6]} 65. Kc6 {[%clk 0:00:44.8]} 65... Re3 {[%clk
0:00:07.4]} 66. Rh8 {[%clk 0:00:44.2]} 66... Rc3+ {[%clk 0:00:07.6]} 67. Kb5
{[%clk 0:00:44.7]} 67... Rb3+ {[%clk 0:00:08.3]} 68. Kc4 {[%clk 0:00:43.9]}
68... Rf3 {[%clk 0:00:07.3]} 69. Kd4 {[%clk 0:00:43.6]} 69... Rf4+ {[%clk
0:00:07]} 70. Kc5 {[%clk 0:00:44.1]} 70... Rf7 {[%clk 0:00:07.8]} 71. Re8+
{[%clk 0:00:42.1]} 71... Re7 {[%clk 0:00:07.9]} 72. Rf8 {[%clk 0:00:42.3]} 72...
Rf7 {[%clk 0:00:08.1]} 73. Rh8 {[%clk 0:00:42.2]} 73... Re7 {[%clk 0:00:09]} 74.
Rh6+ {[%clk 0:00:42.3]} 74... Kd7 {[%clk 0:00:09.3]} 75. Kd5 {[%clk 0:00:42.1]}
75... Rf7 {[%clk 0:00:09.1]} 76. Rh5 {[%clk 0:00:42.3]} 76... Rg7 {[%clk
0:00:08.9]} 77. Rf5 {[%clk 0:00:39.7]} 77... Rh7 {[%clk 0:00:08.8]} 78. Rf6
{[%clk 0:00:39.1]} 78... Rg7 {[%clk 0:00:09.1]} 79. Ra6 {[%clk 0:00:38]} 79...
Rg5+ {[%clk 0:00:09.2]} 80. Ke4 {[%clk 0:00:38.6]} 80... Rg4+ {[%clk 0:00:09.4]}
81. Kf5 {[%clk 0:00:38.9]} 81... Rg1 {[%clk 0:00:09.2]} 82. Ra7+ {[%clk
0:00:39.4]} 82... Kd6 {[%clk 0:00:09.3]} 83. Ra3 {[%clk 0:00:40.3]} 83... Rf1+
{[%clk 0:00:08.9]} 84. Ke4 {[%clk 0:00:40]} 84... Re1+ {[%clk 0:00:09.8]} 85.
Kd3 {[%clk 0:00:39.8]} 85... Rh1 {[%clk 0:00:09.9]} 86. Ra6+ {[%clk 0:00:39.7]}
86... Kd5 {[%clk 0:00:10]} 87. Ra5+ {[%clk 0:00:40.6]} 87... Kd6 {[%clk
0:00:10.4]} 88. Rg5 {[%clk 0:00:41.1]} 88... Rh3+ {[%clk 0:00:10.1]} 89. Ke4
{[%clk 0:00:41.6]} 89... Rh4+ {[%clk 0:00:11]} 90. Kf5 {[%clk 0:00:41.5]} 90...
Rh1 {[%clk 0:00:11.4]} 91. Rg6+ {[%clk 0:00:41.7]} 91... Kd5 {[%clk 0:00:11.3]}
92. Rg4 {[%clk 0:00:42.6]} 92... Rf1+ {[%clk 0:00:11.8]} 93. Kg5 {[%clk
0:00:43.1]} 93... Ke5 {[%clk 0:00:11.7]} 94. Rg2 {[%clk 0:00:42.5]} 94... Rf5+
{[%clk 0:00:11.8]} 95. Kg4 {[%clk 0:00:41.3]} 95... Rf8 {[%clk 0:00:12.7]} 96.
Re2+ {[%clk 0:00:41]} 96... Kd4 {[%clk 0:00:12.6]} 97. Re1 {[%clk 0:00:38.8]}
97... Kd3 {[%clk 0:00:12.7]} 98. Re7 {[%clk 0:00:37]} 98... Kd4 {[%clk 0:00:13]}
99. Re6 {[%clk 0:00:35.2]} 99... Kd5 {[%clk 0:00:13.2]} 100. Re7 {[%clk
0:00:35.4]} 100... Kd4 {[%clk 0:00:13.7]} 101. Re6 {[%clk 0:00:35.3]} 101... Kd5
{[%clk 0:00:14.2]} 1/2-1/2

[Event "Late-Titled-Tuesday-Blitz-March-19-2024"]
[Site "Chess.com"]
[Date "2024.03.19"]
[Round "10"]
[White "CarlosjPineror"]
[Black "stollenmonster"]
[Result "0-1"]
[WhiteElo "2681"]
[BlackElo "2894"]
[TimeControl "180+1"]
[EndTime "15:56:02 PDT"]
[Termination "stollenmonster won by resignation"]

1. e4 {[%clk 0:03:00.9]} 1... c5 {[%clk 0:03:00]} 2. Nf3 {[%clk 0:03:01.2]} 2...
Nf6 {[%clk 0:03:00.6]} 3. e5 {[%clk 0:03:00.9]} 3... Nd5 {[%clk 0:03:01.1]} 4.
b3 {[%clk 0:03:01.7]} 4... g6 {[%clk 0:03:00.6]} 5. Bb2 {[%clk 0:03:02.3]} 5...
Bg7 {[%clk 0:03:00.9]} 6. g3 {[%clk 0:03:03]} 6... Nc6 {[%clk 0:02:59.3]} 7. Bg2
{[%clk 0:03:02.4]} 7... d6 {[%clk 0:02:59.8]} 8. Qe2 {[%clk 0:03:01.6]} 8... Bg4
{[%clk 0:02:53]} 9. h3 {[%clk 0:02:49.6]} 9... Bxf3 {[%clk 0:02:46.9]} 10. Bxf3
{[%clk 0:02:44.9]} 10... e6 {[%clk 0:02:32.7]} 11. Bxd5 {[%clk 0:02:39.5]} 11...
exd5 {[%clk 0:02:33.6]} 12. exd6+ {[%clk 0:02:39.3]} 12... Kf8 {[%clk
0:02:34.3]} 13. Bxg7+ {[%clk 0:02:38.5]} 13... Kxg7 {[%clk 0:02:34.8]} 14. O-O
{[%clk 0:02:22.9]} 14... Qxd6 {[%clk 0:02:23.1]} 15. Nc3 {[%clk 0:02:22.3]}
15... Rhe8 {[%clk 0:02:17.5]} 16. Qf3 {[%clk 0:02:20.8]} 16... Re5 {[%clk
0:02:12.9]} 17. Rae1 {[%clk 0:02:16.1]} 17... Rae8 {[%clk 0:02:12.9]} 18. Qf4
{[%clk 0:02:04.1]} 18... Nd4 {[%clk 0:02:05.9]} 19. Re3 {[%clk 0:01:48]} 19...
Nxc2 {[%clk 0:01:55.6]} 20. Nb5 {[%clk 0:01:48.2]} 20... Qf6 {[%clk 0:01:27]}
21. Qxf6+ {[%clk 0:01:39.8]} 21... Kxf6 {[%clk 0:01:27.9]} 22. Rf3+ {[%clk
0:01:40.4]} 22... Kg7 {[%clk 0:01:23.8]} 23. Rc3 {[%clk 0:01:35.6]} 23... Nd4
{[%clk 0:01:19.1]} 24. Nxd4 {[%clk 0:01:31.7]} 24... cxd4 {[%clk 0:01:18.7]} 25.
Rd3 {[%clk 0:01:32.6]} 25... Re4 {[%clk 0:01:16.9]} 26. f3 {[%clk 0:01:29.3]}
26... R4e6 {[%clk 0:01:08.4]} 27. Rxd4 {[%clk 0:01:29.1]} 27... Rd6 {[%clk
0:00:58.4]} 28. Kf2 {[%clk 0:01:26.4]} 28... Rc8 {[%clk 0:00:55.6]} 29. Re1
{[%clk 0:01:26.4]} 29... Kf6 {[%clk 0:00:54.7]} 30. Rf4+ {[%clk 0:01:22.8]}
30... Kg7 {[%clk 0:00:50.4]} 31. Rd4 {[%clk 0:01:23.4]} 31... Rc2 {[%clk
0:00:42.7]} 32. Re7 {[%clk 0:01:12.7]} 32... Rxa2 {[%clk 0:00:40.6]} 33. Rxb7
{[%clk 0:01:11.2]} 33... Rb2 {[%clk 0:00:36.5]} 34. h4 {[%clk 0:01:08.3]} 34...
Rf6 {[%clk 0:00:21.7]} 35. Rxd5 {[%clk 0:01:01.5]} 35... a5 {[%clk 0:00:22.4]}
36. Rbb5 {[%clk 0:00:57.9]} 36... h5 {[%clk 0:00:19.5]} 37. Rd3 {[%clk
0:00:53.2]} 37... Ra2 {[%clk 0:00:19.3]} 38. Rd4 {[%clk 0:00:47.7]} 38... Ra6
{[%clk 0:00:17.3]} 39. Rb7 {[%clk 0:00:44.2]} 39... Rf6 {[%clk 0:00:16]} 40. Ke3
{[%clk 0:00:41.6]} 40... Ra1 {[%clk 0:00:12]} 41. Kf2 {[%clk 0:00:33.7]} 41...
Ra2 {[%clk 0:00:10.8]} 42. Rd5 {[%clk 0:00:30.6]} 42... Ra1 {[%clk 0:00:08.5]}
43. f4 {[%clk 0:00:27.1]} 43... Re6 {[%clk 0:00:07.1]} 44. Rdd7 {[%clk
0:00:22.5]} 44... Rf6 {[%clk 0:00:07.3]} 45. b4 {[%clk 0:00:18.3]} 45... a4
{[%clk 0:00:07.1]} 46. b5 {[%clk 0:00:17.3]} 46... a3 {[%clk 0:00:07]} 47. Ra7
{[%clk 0:00:18]} 47... Rb1 {[%clk 0:00:06.6]} 48. Rxa3 {[%clk 0:00:17.2]} 48...
Rxb5 {[%clk 0:00:06.4]} 49. Rad3 {[%clk 0:00:17.8]} 49... Rb1 {[%clk 0:00:06.6]}
50. R3d6 {[%clk 0:00:16.8]} 50... Rf5 {[%clk 0:00:05.4]} 51. Rd5 {[%clk
0:00:16.5]} 51... Rf6 {[%clk 0:00:05.8]} 52. R7d6 {[%clk 0:00:17.1]} 52... Rb2
{[%clk 0:00:05.6]} 53. Rxf6 {[%clk 0:00:16.9]} 53... Kxf6 {[%clk 0:00:06.5]} 54.
Kf3 {[%clk 0:00:16.4]} 54... Ke6 {[%clk 0:00:06.7]} 55. Rd3 {[%clk 0:00:16.8]}
55... Rb1 {[%clk 0:00:07]} 56. Kf2 {[%clk 0:00:17.2]} 56... Rb2 {[%clk
0:00:06.5]} 57. Re3+ {[%clk 0:00:17.2]} 57... Kf6 {[%clk 0:00:07]} 58. Re2
{[%clk 0:00:15.9]} 58... Rb4 {[%clk 0:00:07]} 59. d3 {[%clk 0:00:16]} 59... Kf5
{[%clk 0:00:07]} 60. Re5+ {[%clk 0:00:15.5]} 60... Kg4 {[%clk 0:00:07.4]} 61.
Rg5+ {[%clk 0:00:13.8]} 61... Kh3 {[%clk 0:00:07.8]} 62. f5 {[%clk 0:00:14.4]}
62... gxf5 {[%clk 0:00:07.1]} 63. Rxf5 {[%clk 0:00:14.8]} 63... Rb2+ {[%clk
0:00:06.9]} 64. Ke3 {[%clk 0:00:14.6]} 64... Rb1 {[%clk 0:00:06.3]} 65. Rxh5
{[%clk 0:00:13.8]} 65... Kxg3 {[%clk 0:00:06.6]} 66. Rh8 {[%clk 0:00:14.1]}
66... f5 {[%clk 0:00:06.4]} 67. h5 {[%clk 0:00:12.2]} 67... f4+ {[%clk
0:00:06.5]} 68. Ke4 {[%clk 0:00:11.3]} 68... Re1+ {[%clk 0:00:07]} 69. Kd4
{[%clk 0:00:11.5]} 69... f3 {[%clk 0:00:07.4]} 70. Rg8+ {[%clk 0:00:11.1]} 70...
Kf2 {[%clk 0:00:06.6]} 71. h6 {[%clk 0:00:09.5]} 71... Rh1 {[%clk 0:00:07.2]}
72. Rg6 {[%clk 0:00:09.9]} 72... Rh4+ {[%clk 0:00:07.4]} 73. Ke5 {[%clk
0:00:09.8]} 73... Ke2 {[%clk 0:00:07.9]} 74. d4 {[%clk 0:00:08.2]} 74... f2
{[%clk 0:00:08.5]} 75. Rf6 {[%clk 0:00:08.8]} 75... Rh5+ {[%clk 0:00:08.8]} 76.
Ke6 {[%clk 0:00:08.6]} 76... Rxh6 {[%clk 0:00:09]} 77. Rxh6 {[%clk 0:00:08.4]}
77... f1=Q {[%clk 0:00:09.4]} 78. Kd6 {[%clk 0:00:06.4]} 78... Qf8+ {[%clk
0:00:09.5]} 79. Kc7 {[%clk 0:00:04.8]} 79... Qxh6 {[%clk 0:00:10.1]} 80. d5
{[%clk 0:00:05.7]} 80... Qf6 {[%clk 0:00:08.5]} 81. d6 {[%clk 0:00:06.6]} 81...
Qe5 {[%clk 0:00:09]} 82. Kc6 {[%clk 0:00:06.9]} 82... Qc3+ {[%clk 0:00:08.4]}
83. Kb7 {[%clk 0:00:07]} 83... Qb4+ {[%clk 0:00:08.5]} 84. Kc7 {[%clk
0:00:07.1]} 84... Qc5+ {[%clk 0:00:08.8]} 85. Kd7 {[%clk 0:00:07.5]} 85... Ke3
{[%clk 0:00:09.3]} 86. Ke7 {[%clk 0:00:08.4]} 86... Qe5+ {[%clk 0:00:09.5]} 87.
Kd7 {[%clk 0:00:08.1]} 87... Kd4 {[%clk 0:00:09.9]} 88. Kc6 {[%clk 0:00:08.8]}
88... Qe6 {[%clk 0:00:10.2]} 89. Kc7 {[%clk 0:00:09.7]} 89... Qe5 {[%clk
0:00:10.5]} 90. Kc6 {[%clk 0:00:09.9]} 90... Qc5+ {[%clk 0:00:10.8]} 91. Kd7
{[%clk 0:00:10.2]} 91... Kd5 {[%clk 0:00:11.2]} 92. Ke8 {[%clk 0:00:11.1]} 92...
Kxd6 {[%clk 0:00:11.1]} 0-1

[Event "Late-Titled-Tuesday-Blitz-March-19-2024"]
[Site "Chess.com"]
[Date "2024.03.19"]
[Round "10"]
[White "Narek_Ghimoyan"]
[Black "karinachess1"]
[Result "1/2-1/2"]
[WhiteElo "2480"]
[BlackElo "2624"]
[TimeControl "180+1"]
[EndTime "15:57:17 PDT"]
[Termination "Game drawn - insufficient material"]

1. d4 {[%clk 0:03:00.9]} 1... Nf6 {[%clk 0:02:59.6]} 2. c4 {[%clk 0:03:00.5]}
2... e6 {[%clk 0:02:59.8]} 3. Nf3 {[%clk 0:03:00.5]} 3... d5 {[%clk 0:03:00.2]}
4. Nc3 {[%clk 0:02:59.9]} 4... Bb4 {[%clk 0:02:59.8]} 5. Bg5 {[%clk 0:02:59.3]}
5... h6 {[%clk 0:02:59.7]} 6. Bxf6 {[%clk 0:02:59.4]} 6... Qxf6 {[%clk
0:03:00.6]} 7. e3 {[%clk 0:02:59.2]} 7... O-O {[%clk 0:02:57.6]} 8. Rc1 {[%clk
0:02:58.6]} 8... dxc4 {[%clk 0:02:49.9]} 9. Bxc4 {[%clk 0:02:59.5]} 9... c5
{[%clk 0:02:50.2]} 10. O-O {[%clk 0:02:49.9]} 10... cxd4 {[%clk 0:02:46.9]} 11.
Ne4 {[%clk 0:02:48.7]} 11... Qe7 {[%clk 0:02:45.4]} 12. a3 {[%clk 0:02:41.2]}
12... Ba5 {[%clk 0:02:43.5]} 13. exd4 {[%clk 0:02:41]} 13... Nc6 {[%clk
0:02:30.7]} 14. Qe2 {[%clk 0:02:39.5]} 14... Bb6 {[%clk 0:02:21.6]} 15. Rfd1
{[%clk 0:02:32.4]} 15... Rd8 {[%clk 0:02:08.6]} 16. Qe3 {[%clk 0:02:10.6]} 16...
Bd7 {[%clk 0:02:02.5]} 17. Nc5 {[%clk 0:02:08.1]} 17... Nxd4 {[%clk 0:01:33.9]}
18. Nxd7 {[%clk 0:01:51.3]} 18... Nxf3+ {[%clk 0:01:25.7]} 19. Qxf3 {[%clk
0:01:49.6]} 19... Rxd7 {[%clk 0:01:26.1]} 20. Bb5 {[%clk 0:01:29.4]} 20... Rd4
{[%clk 0:01:20.6]} 21. Rxd4 {[%clk 0:01:20]} 21... Bxd4 {[%clk 0:01:21.5]} 22.
Rd1 {[%clk 0:01:02.6]} 22... e5 {[%clk 0:01:15.3]} 23. Qe2 {[%clk 0:00:58.2]}
23... Qf6 {[%clk 0:01:10.1]} 24. Bd3 {[%clk 0:00:54.9]} 24... g6 {[%clk
0:01:07.6]} 25. g3 {[%clk 0:00:54.6]} 25... Re8 {[%clk 0:01:03.3]} 26. Be4
{[%clk 0:00:53.6]} 26... Re7 {[%clk 0:00:57.4]} 27. Kg2 {[%clk 0:00:52.8]} 27...
Kg7 {[%clk 0:00:56.6]} 28. b3 {[%clk 0:00:51.9]} 28... Qb6 {[%clk 0:00:56]} 29.
Bd5 {[%clk 0:00:50.1]} 29... Rd7 {[%clk 0:00:51.5]} 30. Bc4 {[%clk 0:00:47.8]}
30... Rd6 {[%clk 0:00:48.6]} 31. f3 {[%clk 0:00:34.1]} 31... Qc7 {[%clk
0:00:43.8]} 32. Qe4 {[%clk 0:00:32.7]} 32... Qc6 {[%clk 0:00:26.8]} 33. Qxc6
{[%clk 0:00:32]} 33... Rxc6 {[%clk 0:00:27.2]} 34. a4 {[%clk 0:00:31.6]} 34...
a6 {[%clk 0:00:25.8]} 35. f4 {[%clk 0:00:31.3]} 35... f6 {[%clk 0:00:17.2]} 36.
fxe5 {[%clk 0:00:30.5]} 36... fxe5 {[%clk 0:00:18.1]} 37. Re1 {[%clk 0:00:30.9]}
37... Rc7 {[%clk 0:00:16.5]} 38. Rf1 {[%clk 0:00:31.1]} 38... Re7 {[%clk
0:00:16.3]} 39. Kf3 {[%clk 0:00:29.9]} 39... h5 {[%clk 0:00:13]} 40. Ke4 {[%clk
0:00:29.4]} 40... Rc7 {[%clk 0:00:13.3]} 41. Rf3 {[%clk 0:00:27.6]} 41... Re7
{[%clk 0:00:11.4]} 42. h3 {[%clk 0:00:27.7]} 42... Rc7 {[%clk 0:00:10.1]} 43. g4
{[%clk 0:00:28.3]} 43... hxg4 {[%clk 0:00:10.2]} 44. hxg4 {[%clk 0:00:29.2]}
44... Kh6 {[%clk 0:00:10.7]} 45. Rf6 {[%clk 0:00:25.7]} 45... Kg5 {[%clk
0:00:10]} 46. Rf7 {[%clk 0:00:23]} 46... Rc6 {[%clk 0:00:09.6]} 47. Rxb7 {[%clk
0:00:20.8]} 47... Kxg4 {[%clk 0:00:09.6]} 48. Rg7 {[%clk 0:00:20.5]} 48... g5
{[%clk 0:00:09.7]} 49. Kd5 {[%clk 0:00:20.9]} 49... Rf6 {[%clk 0:00:09.1]} 50.
Ke4 {[%clk 0:00:19.5]} 50... Kh4 {[%clk 0:00:08.2]} 51. Rh7+ {[%clk 0:00:18.5]}
51... Kg3 {[%clk 0:00:08.4]} 52. Rg7 {[%clk 0:00:18.1]} 52... g4 {[%clk
0:00:09]} 53. Be2 {[%clk 0:00:18]} 53... Rf4+ {[%clk 0:00:09]} 54. Kd5 {[%clk
0:00:18.4]} 54... Kh3 {[%clk 0:00:08.8]} 55. Bxa6 {[%clk 0:00:16.6]} 55... g3
{[%clk 0:00:09.3]} 56. Be2 {[%clk 0:00:15.2]} 56... g2 {[%clk 0:00:08.3]} 57.
Bd3 {[%clk 0:00:12.2]} 57... g1=Q {[%clk 0:00:05.7]} 58. Rxg1 {[%clk 0:00:10.5]}
58... Bxg1 {[%clk 0:00:06.6]} 59. Kxe5 {[%clk 0:00:10.4]} 59... Rb4 {[%clk
0:00:06.1]} 60. Bc4 {[%clk 0:00:10.4]} 60... Kg4 {[%clk 0:00:06.1]} 61. Kd5
{[%clk 0:00:10.5]} 61... Kf5 {[%clk 0:00:05.7]} 62. a5 {[%clk 0:00:11.1]} 62...
Kf6 {[%clk 0:00:05.4]} 63. Kc6 {[%clk 0:00:10.6]} 63... Ke7 {[%clk 0:00:05.6]}
64. Kc7 {[%clk 0:00:09.9]} 64... Bf2 {[%clk 0:00:03.6]} 65. a6 {[%clk
0:00:09.4]} 65... Ba7 {[%clk 0:00:03]} 66. Kc6 {[%clk 0:00:09.5]} 66... Kd8
{[%clk 0:00:03.2]} 67. Kd6 {[%clk 0:00:07.9]} 67... Kc8 {[%clk 0:00:03.5]} 68.
Kc6 {[%clk 0:00:08.8]} 68... Kb8 {[%clk 0:00:04]} 69. Kd6 {[%clk 0:00:08.9]}
69... Rb6+ {[%clk 0:00:04.3]} 70. Kd5 {[%clk 0:00:09.3]} 70... Rh6 {[%clk
0:00:04.6]} 71. b4 {[%clk 0:00:07.4]} 71... Bb6 {[%clk 0:00:05.5]} 72. b5 {[%clk
0:00:07.7]} 72... Ka7 {[%clk 0:00:06.4]} 73. Bd3 {[%clk 0:00:07.9]} 73... Rh4
{[%clk 0:00:06.4]} 74. Be2 {[%clk 0:00:07.8]} 74... Rd4+ {[%clk 0:00:06.4]} 75.
Ke5 {[%clk 0:00:07.8]} 75... Rd2 {[%clk 0:00:06.4]} 76. Bf3 {[%clk 0:00:07.8]}
76... Bc5 {[%clk 0:00:06.7]} 77. Bc6 {[%clk 0:00:08.7]} 77... Kb6 {[%clk
0:00:07.1]} 78. Ke4 {[%clk 0:00:09.3]} 78... Rd8 {[%clk 0:00:06.9]} 79. Ke5
{[%clk 0:00:09.5]} 79... Bb4 {[%clk 0:00:06.7]} 80. Ke6 {[%clk 0:00:09.9]} 80...
Bc5 {[%clk 0:00:06.8]} 81. Ke5 {[%clk 0:00:10.3]} 81... Kc7 {[%clk 0:00:07.3]}
82. Ke6 {[%clk 0:00:10.5]} 82... Rh8 {[%clk 0:00:07.1]} 83. Ke5 {[%clk
0:00:10.6]} 83... Rh5+ {[%clk 0:00:06.8]} 84. Ke6 {[%clk 0:00:11]} 84... Rh6+
{[%clk 0:00:07.3]} 85. Kd5 {[%clk 0:00:11.3]} 85... Bg1 {[%clk 0:00:07.4]} 86.
Kc4 {[%clk 0:00:12.2]} 86... Kd6 {[%clk 0:00:07]} 87. Kd3 {[%clk 0:00:11.5]}
87... Bb6 {[%clk 0:00:05.8]} 88. Ke4 {[%clk 0:00:12]} 88... Rh4+ {[%clk
0:00:04.4]} 89. Kf5 {[%clk 0:00:12.3]} 89... Rd4 {[%clk 0:00:03]} 90. Kf6 {[%clk
0:00:12.3]} 90... Rd1 {[%clk 0:00:02.5]} 91. Kf5 {[%clk 0:00:12.4]} 91... Rf1+
{[%clk 0:00:02.8]} 92. Ke4 {[%clk 0:00:12.9]} 92... Kc5 {[%clk 0:00:03.3]} 93.
Ke5 {[%clk 0:00:12.9]} 93... Bc7+ {[%clk 0:00:03.9]} 94. Ke6 {[%clk 0:00:13]}
94... Re1+ {[%clk 0:00:04]} 95. Kd7 {[%clk 0:00:13.6]} 95... Kb6 {[%clk
0:00:04.6]} 96. Kc8 {[%clk 0:00:13.1]} 96... Re7 {[%clk 0:00:04.3]} 97. Bd7
{[%clk 0:00:12.7]} 97... Bd6 {[%clk 0:00:04]} 98. Bc6 {[%clk 0:00:12.6]} 98...
Rc7+ {[%clk 0:00:04]} 99. Kd8 {[%clk 0:00:12.8]} 99... Ra7 {[%clk 0:00:04.1]}
100. Ke8 {[%clk 0:00:12.7]} 100... Bc5 {[%clk 0:00:04]} 101. Kd8 {[%clk
0:00:10.8]} 101... Ba3 {[%clk 0:00:04.2]} 102. Bb7 {[%clk 0:00:10.4]} 102...
Kxb5 {[%clk 0:00:04]} 103. Kd7 {[%clk 0:00:10.5]} 103... Bc5 {[%clk 0:00:04.6]}
104. Ke6 {[%clk 0:00:10.7]} 104... Kb6 {[%clk 0:00:04.7]} 105. Kd5 {[%clk
0:00:10.7]} 105... Bb4 {[%clk 0:00:04.8]} 106. Kc4 {[%clk 0:00:10.9]} 106... Ba5
{[%clk 0:00:05.1]} 107. Kd5 {[%clk 0:00:11.3]} 107... Be1 {[%clk 0:00:05.2]}
108. Kc4 {[%clk 0:00:11.6]} 108... Bf2 {[%clk 0:00:05.7]} 109. Kd5 {[%clk
0:00:11.9]} 109... Kc7 {[%clk 0:00:06.6]} 110. Kc4 {[%clk 0:00:12]} 110... Kb8
{[%clk 0:00:07]} 111. Kd5 {[%clk 0:00:12.5]} 111... Bg1 {[%clk 0:00:07.8]} 112.
Kc4 {[%clk 0:00:13]} 112... Bb6 {[%clk 0:00:08.4]} 113. Kd5 {[%clk 0:00:13.3]}
113... Ba5 {[%clk 0:00:09]} 114. Kc6 {[%clk 0:00:13.4]} 114... Bb4 {[%clk
0:00:08.2]} 115. Kb5 {[%clk 0:00:13.5]} 115... Bd2 {[%clk 0:00:08.1]} 116. Kc6
{[%clk 0:00:13.4]} 116... Be3 {[%clk 0:00:08.8]} 117. Kb5 {[%clk 0:00:13.3]}
117... Bg1 {[%clk 0:00:09]} 118. Kc6 {[%clk 0:00:13.5]} 118... Rxb7 {[%clk
0:00:09.6]} 119. axb7 {[%clk 0:00:13.1]} 119... Bf2 {[%clk 0:00:10.1]} 120. Kd7
{[%clk 0:00:11.9]} 120... Kxb7 {[%clk 0:00:09.9]} 1/2-1/2

[Event "Late-Titled-Tuesday-Blitz-March-19-2024"]
[Site "Chess.com"]
[Date "2024.03.19"]
[Round "11"]
[White "AlexTruskavetsky"]
[Black "Marcan2b"]
[Result "1-0"]
[WhiteElo "2688"]
[BlackElo "2915"]
[TimeControl "180+1"]
[EndTime "16:00:15 PDT"]
[Termination "AlexTruskavetsky won by resignation"]

1. d4 {[%clk 0:02:59.4]} 1... Nf6 {[%clk 0:02:59.3]} 2. c4 {[%clk 0:02:59.6]}
2... g6 {[%clk 0:02:59.7]} 3. Nc3 {[%clk 0:02:59.7]} 3... Bg7 {[%clk 0:03:00.6]}
4. e4 {[%clk 0:03:00]} 4... d6 {[%clk 0:03:01.1]} 5. f4 {[%clk 0:03:00.4]} 5...
O-O {[%clk 0:03:02]} 6. Nf3 {[%clk 0:03:00.7]} 6... c5 {[%clk 0:02:59.7]} 7. d5
{[%clk 0:03:00.9]} 7... e6 {[%clk 0:02:58.7]} 8. Bd3 {[%clk 0:03:01.2]} 8...
exd5 {[%clk 0:02:58.7]} 9. cxd5 {[%clk 0:03:02.1]} 9... b5 {[%clk 0:02:47.9]}
10. e5 {[%clk 0:03:01.7]} 10... Nfd7 {[%clk 0:02:41.5]} 11. Bxb5 {[%clk
0:03:00.6]} 11... dxe5 {[%clk 0:02:40.6]} 12. fxe5 {[%clk 0:03:01.5]} 12... Nxe5
{[%clk 0:02:37.7]} 13. O-O {[%clk 0:03:01.7]} 13... Bg4 {[%clk 0:02:36.7]} 14.
Be2 {[%clk 0:03:01]} 14... Bxf3 {[%clk 0:02:36.3]} 15. Bxf3 {[%clk 0:03:01.9]}
15... Nbd7 {[%clk 0:02:36.6]} 16. Bf4 {[%clk 0:02:48.8]} 16... Rb8 {[%clk
0:02:35.7]} 17. Rb1 {[%clk 0:02:48.7]} 17... Rb4 {[%clk 0:02:34.9]} 18. Bg3
{[%clk 0:02:47.7]} 18... Re8 {[%clk 0:02:32.3]} 19. d6 {[%clk 0:02:46.1]} 19...
Rd4 {[%clk 0:02:31.5]} 20. Qb3 {[%clk 0:02:43.9]} 20... c4 {[%clk 0:02:27.1]}
21. Qa3 {[%clk 0:02:41.8]} 21... Bf8 {[%clk 0:02:19.6]} 22. Bd5 {[%clk
0:02:40.2]} 22... Nf6 {[%clk 0:02:13.1]} 23. Qxa7 {[%clk 0:02:39.9]} 1-0